{"text_format":"3","workbook":"xlsx","n_sheets":3,"sheets":["Codificación de series y subser","CCD","Control de Versiones "],"not_rendered":{"images":2,"defined_names":1},"read":"whole","date_system":"1900"}

{"sheet":"Codificación de series y subser","index":0,"n_rows":124,"n_cols":6,"rows_kept":124,"hidden":true}
["SERIE","CODIGO","SUBSERIE ","CODIGO"]
["ACCIONES CONSTITUCIONALES",{"$f":"VLOOKUP(A2,$A$76:$B$124,2,0)","v":1},"Acciones de Tutela",{"$f":"+CONCATENATE(B2,F2,E2)","v":"1.1"},1,"."]
["ACTAS",2,"Actas de Comité de Carrera Judicial",{"$f":"+CONCATENATE(B3,F3,E3)","v":"2.2"},2,"."]
["ACTAS",2,"Actas de Comité de Contratos","2.3",3,"."]
["ACTAS",2,"Actas de Reunión","2.4",4,"."]
["ACTAS",2,"Actas de Sala Administrativa","2.5",5,"."]
["ACTAS",2,"Actas de Sala Jurisdiccional Disciplinaria","2.6",6,"."]
["ACTOS ADMINISTRATIVOS",3,"Acuerdos","3.1",1,"."]
["ACTOS ADMINISTRATIVOS",3,"Resoluciones","3.2",2,"."]
["ANTEPROYECTO DE PRESUPUESTO",4,{"$nulls":3},"."]
["BOLETINES DIARIOS DE TESORERIA",5,{"$nulls":3},"."]
["BOLETINES INFORMATIVOS",6,{"$nulls":3},"."]
["BONOS PENSIONALES",7,{"$nulls":3},"."]
["CERTIFICACIONES",8,"Certificaciones de Ingresos y Retenciones",{"$f":"+CONCATENATE(B14,F14,E14)","v":"8.1"},1,"."]
["CERTIFICACIONES",8,"Certificaciones Laborales","8.2",2,"."]
["CERTIFICADOS DE DISPONIBILIDAD PRESUPUESTAL",9,{"$nulls":3},"."]
["CIRCULARES",10,{"$nulls":3},"."]
["COMPROBANTES CONTABLES",11,"Comprobantes Contables de Egreso",{"$f":"+CONCATENATE(B18,F18,E18)","v":"11.1"},1,"."]
["COMPROBANTES CONTABLES",11,"Comprobantes Contables de Ingreso","11.2",2,"."]
["COMPROBANTES DE ALMACÉN",12,"Comprobantes de Entrada Elementos a Almacén","12.1",1,"."]
["COMPROBANTES DE ALMACÉN",12,"Comprobantes de Salida de Elementos de Almacén","12.2",2,"."]
["CONCEPTOS",13,"Conceptos Jurídicos","13.1",1,"."]
["CONCEPTOS",13,"Conceptos Técnicos","13.2",2,"."]
["CONCILIACIONES BANCARIAS",14,{"$nulls":3},"."]
["CONCURSOS DE MÉRITOS",15,{"$nulls":3},"."]
["CONDECORACIONES",16,{"$nulls":3},"."]
["CONTRATOS",17,{"$nulls":3},"."]
["CONTROLES DE ASISTENCIA",18,{"$nulls":3},"."]
["CONVENIOS",19,"Convenios Interadministrativos",{"$f":"+CONCATENATE(B29,F29,E29)","v":"19.1"},1,"."]
["CORRESPONDENCIA",20,{"$nulls":3},"."]
["COTIZACIONES",21,{"$nulls":3},"."]
["DECLARACIONES TRIBUTARIAS",22,{"$nulls":3},"."]
["ESTADOS FINANCIEROS",23,"Estados Financieros de Proposito General",{"$f":"+CONCATENATE(B33,F33,E33)","v":"23.1"},1,"."]
["HISTORIALES DE BIENES INMUEBLES",24,{"$nulls":3},"."]
["HISTORIALES DE VEHÍCULOS",{"$f":"VLOOKUP(A35,$A$76:$B$124,2,0)","v":25},{"$nulls":3},"."]
["HISTORIAS LABORALES",26,{"$nulls":3},"."]
["INFORMES",27,"Informes a Entes de Control",{"$f":"+CONCATENATE(B37,F37,E37)","v":"27.1"},1,"."]
["INFORMES",27,"Informes a Otras Entidades","27.2",2,"."]
["INFORMES",27,"Informes de Auditoria","27.3",3,"."]
["INFORMES",27,"Informes de Gestión","27.4",4,"."]
["INFORMES",27,"Informes de Rendición de Cuentas","27.5",5,"."]
["INFORMES",27,"Informes de Siniestros","27.6",6,"."]
["INFORMES",27,"Informes Financieros","27.7",7,"."]
["INVENTARIOS",28,"Inventarios de Vehículos","28.1",1,"."]
["INVENTARIOS",28,"Inventarios Generales de Bienes","28.2",2,"."]
["LIBROS CONTABLES AUXILIARES",29,{"$nulls":3},"."]
["LIBROS CONTABLES PRINCIPALES",30,"Libro Mayor","30.1",1,"."]
["LIBROS DE CONTABILIDAD PRESUPUESTAL",31,{"$nulls":3},"."]
["LICITACIONES",32,{"$nulls":3},"."]
["MANUALES",33,"Manuales de Funciones",{"$f":"+CONCATENATE(B50,F50,E50)","v":"33.1"},1,"."]
["MANUALES",33,"Manuales de Procesos y Procedimientos","33.2",2,"."]
["NÓMINA",34,{"$nulls":3},"."]
["ORDENES DE SERVICIO",35,{"$nulls":3},"."]
["ORDENES DE PAGO",36,{"$nulls":3},"."]
["PLANES",37,"Planes de Vacaciones",{"$f":"+CONCATENATE(B55,F55,E55)","v":"37.1"},1,"."]
["PLANILLAS DE CORRESPONDENCIA",38,{"$nulls":3},"."]
["PROCESOS",39,"Procesos Contencioso Administrativos",{"$f":"+CONCATENATE(B57,F57,E57)","v":"39.1"},1,"."]
["PROCESOS",39,"Procesos Disciplinarios","39.2",2,"."]
["PROCESOS",39,"Procesos de Cobro Coactivo","39.3",3,"."]
["PROCESOS",39,"Procesos de Selección de Personal","39.4",4,"."]
["PROGRAMAS",40,"Programas Anuales Mensualizados de Caja PAC","40.1",1,"."]
["PROGRAMAS",40,"Programas de Compras","40.2",2,"."]
["PROGRAMAS",40,"Programas de Mantenimiento","40.3",3,"."]
["PROTOCOLOS",41]
["PROVIDENCIAS",42]
["PUBLICACIONES INSTITUCIONALES",43]
["REGISTROS DE ENTREGA DE VEHÍCULOS",44]
["REGISTROS DE OPERACIONES DE CAJA MENOR",{"$f":"VLOOKUP(A68,$A$76:$B$124,2,0)","v":45}]
["REGISTROS DE SERVICIOS DE TRANSPORTES",46]
["REGISTROS DE TRASLADOS DE PERSONAL",47]
["SENTENCIAS",48]
["TITULOS JUDICIALES",49]
[]
[]
[]
["ACCIONES CONSTITUCIONALES",1]
["ACTAS",2]
["ACTOS ADMINISTRATIVOS",3]
["ANTEPROYECTO DE PRESUPUESTO",4]
["BOLETINES DIARIOS DE TESORERIA",5]
["BOLETINES INFORMATIVOS",6]
["BONOS PENSIONALES",7]
["CERTIFICACIONES",8]
["CERTIFICADOS DE DISPONIBILIDAD PRESUPUESTAL",9]
["CIRCULARES",10]
["COMPROBANTES CONTABLES",11]
["COMPROBANTES DE ALMACÉN",12]
["CONCEPTOS",13]
["CONCILIACIONES BANCARIAS",14]
["CONCURSOS DE MÉRITOS",15]
["CONDECORACIONES",16]
["CONTRATOS",17]
["CONTROLES DE ASISTENCIA",18]
["CONVENIOS",19]
["CORRESPONDENCIA",20]
["COTIZACIONES",21]
["DECLARACIONES TRIBUTARIAS",22]
["ESTADOS FINANCIEROS",23]
["HISTORIALES DE BIENES INMUEBLES",24]
["HISTORIALES DE VEHÍCULOS",25]
["HISTORIAS LABORALES",26]
["INFORMES",27]
["INVENTARIOS",28]
["LIBROS CONTABLES AUXILIARES",29]
["LIBROS CONTABLES PRINCIPALES",30]
["LIBROS DE CONTABILIDAD PRESUPUESTAL",31]
["LICITACIONES",32]
["MANUALES",33]
["NÓMINA",34]
["ORDENES DE SERVICIO",35]
["ORDENES DE PAGO",36]
["PLANES",37]
["PLANILLAS DE CORRESPONDENCIA",38]
["PROCESOS",39]
["PROGRAMAS",40]
["PROTOCOLOS",41]
["PROVIDENCIAS",42]
["PUBLICACIONES INSTITUCIONALES",43]
["REGISTROS DE ENTREGA DE VEHÍCULOS",44]
["REGISTROS DE OPERACIONES DE CAJA MENOR",45]
["REGISTROS DE SERVICIOS DE TRANSPORTES",46]
["REGISTROS DE TRASLADOS DE PERSONAL",47]
["SENTENCIAS",48]
["TITULOS JUDICIALES",49]

{"sheet":"CCD","index":1,"n_rows":93,"n_cols":16,"rows_kept":93,"merged":[[1,0,2,3],[1,4,1,15],[2,4,2,15]]}
[]
[{"$nulls":4},"CUADRO DE CLASIFICACIÓN DOCUMENTAL - CCD"]
[{"$nulls":4},"CONSEJO SUPERIOR DE LA JUDICATURA\nNÚMERO PERIODO INSTITUCIONAL: 3\nFECHAS EXTREMAS: 05 DE SEPTIEMBRE DE 1995 AL 06 DE MARZO DE 1996"]
[]
["Versión: 2024"]
[]
["No.","CÓDIGO\nSECCIÓN","SECCIÓN","CÓDIGO SUBSECCIÓN 1","SUBSECCIÓN 1","CÓDIGO SUBSECCIÓN 2","SUBSECCIÓN 2","CÓDIGO SUBSECCIÓN 3","SUBSECCIÓN 3","CÓDIGO SUBSECCIÓN 3","SUBSECCIÓN 4","CÓDIGO SERIE","SERIE","CÓDIGO SUBSERIE ","SUBSERIE ","NORMATIVIDAD APLICABLE"]
[1,"110000-III","PRESIDENCIA DEL CONSEJO"]
[2,"110000-III","PRESIDENCIA DEL CONSEJO","111000-III","DESPACHO DEL PRESIIDENTE"]
[3,"110000-III","PRESIDENCIA DEL CONSEJO","112000-III","UNIDAD DE CONTROL INTERNO"]
[4,"110000-III","PRESIDENCIA DEL CONSEJO","113000-III","DIVISIÓN DE DIVULGACIÓN Y PRENSA"]
[5,"120000-III","DIRECCIÓN ADMINISTRATIVA",{"$nulls":8},"16","CORRESPONDENCIA ENVIADA Y RECIBIDA",null,null,"Acuerdo 008 de 1992. \"Por el cual se crean unas dependencias en el Consejo Superior de la Judicatura y se estabece una planta de Personal. Artículo 1. Dirección Administrativa. "]
[6,"120000-III","DIRECCIÓN ADMINISTRATIVA","121000-III","DIVISIÓN DE BIBLIOTECA"]
[7,"120000-III","DIRECCIÓN ADMINISTRATIVA","122000-III","SECCIÓN DE RADICACIÓN Y CORRESPONDENCIA",{"$nulls":6},"16","CORRESPONDENCIA ENVIADA Y RECIBIDA",null,null,"Acuerdo 008 de 1992. \"Por el cual se crean unas dependencias en el Consejo Superior de la Judicatura y se estabece una planta de Personal. Artículo 1. Dirección Administrativa. "]
[8,"120000-III","DIRECCIÓN ADMINISTRATIVA","122000-III","SECCIÓN DE RADICACIÓN Y CORRESPONDENCIA",{"$nulls":6},"29","PLANILLAS DE CORRESPONDENCIA ",null,null,"Acuerdo 008 de 1992. \"Por el cual se crean unas dependencias en el Consejo Superior de la Judicatura y se estabece una planta de Personal. Artículo 1. Dirección Administrativa. "]
[9,"130000-III","SALA ADMINISTRATIVA",{"$nulls":8},"02","ACTAS","02.04","Actas de Sala Administrativa","Acuerdo 115 de 1993 \"Por el cual dicta el Reglamento Interno de la Sala Administrativa” Artículo 2: Funciones de la Sala Administrativa. Item 11.Regular los trámites judiciales y administrativos que se adelanten en los despachos judiciales, en los aspectos no previstos por el legislador."]
[10,"130000-III","SALA ADMINISTRATIVA",{"$nulls":8},"03","ACTOS ADMINISTRATIVOS","03.01","Acuerdos","Acuerdo 115 de 1993 \"Por el cual dicta el Reglamento Interno de la Sala Administrativa” Artículo 2: Funciones de la Sala Administrativa. Item 12. Expedir los reglamentos de funciones y procedimientos Administrativos de la Rama Judicial, con las excepciones previstas en la Constitución."]
[11,"130000-III","SALA ADMINISTRATIVA",{"$nulls":8},"03","ACTOS ADMINISTRATIVOS","03.02","Resoluciones","Acuerdo 115 de 1993 \"Por el cual dicta el Reglamento Interno de la Sala Administrativa” Artículo 2: Funciones de la Sala Administrativa. Item 12. Expedir los reglamentos de funciones y procedimientos Administrativos de la Rama Judicial, con las excepciones previstas en la Constitución."]
[12,"130000-III","SALA ADMINISTRATIVA",{"$nulls":8},"16","CORRESPONDENCIA ENVIADA Y RECIBIDA",null,null,"Acuerdo 115 de 1993 \"Por el cual dicta el Reglamento Interno de la Sala Administrativa” Artículo 2: Funciones de la Sala Administrativa. Item 9. nviar a la Corte suprema de Justicia y al Consejo de Estado lista de candidatos para proveer las vacantes de Magistrados que se presenten en estas Corporaciones. 10. Elaborar y presentar a la Corte Suprema de Justicia y al Consejo de Estado listas de candidatos para Magistrados de los respectivos tribunales, de conformidad con las normas sobre Carrera Judicial. 11. Regular los trámites judiciales y administrativos que se adelanten en los despachos judiciales, en los aspectos no previstos por el legislador. "]
[13,"130000-III","SALA ADMINISTRATIVA",{"$nulls":8},"21","INFORMES","21.02","Informes de Gestión","Acuerdo 115 de 1993 \"Por el cual dicta el Reglamento Interno de la Sala Administrativa” Artículo 2: Funciones de la Sala Administrativa. Item. 17. levar el control de rendimiento de las Corporaciones Judiciales."]
[14,"130000-III","SALA ADMINISTRATIVA",{"$nulls":8},"29","PLANILLAS DE CORRESPONDENCIA ",null,null,"Acuerdo 115 de 1993 \"Por el cual dicta el Reglamento Interno de la Sala Administrativa” Artículo 2: Funciones de la Sala Administrativa. Item. 17. levar el control de rendimiento de las Corporaciones Judiciales."]
[15,"130000-III","SALA ADMINISTRATIVA","131000-III","PRESIDENCIA DE LA SALA"]
[16,"130000-III","SALA ADMINISTRATIVA","132000-III","DIRECCIÓN DE PLANEACIÓN",{"$nulls":6},"04","ANTEPROYECTO DE PRESUPUESTO",null,null,"Acuerdo 115 de 1993 \"Por el cual dicta el Reglamento Interno de la Sala Administrativa” Artículo 2: Funciones de la Sala Administrativa. Item. 17. levar el control de rendimiento de las Corporaciones Judiciales."]
[17,"130000-III","SALA ADMINISTRATIVA","132000-III","DIRECCIÓN DE PLANEACIÓN",{"$nulls":6},"09","CIRCULARES",null,null,"Acuerdo 115 de 1993 \"Por el cual dicta el Reglamento Interno de la Sala Administrativa” Artículo 2: Funciones de la Sala Administrativa. Item. 17. levar el control de rendimiento de las Corporaciones Judiciales."]
[18,"130000-III","SALA ADMINISTRATIVA","132000-III","DIRECCIÓN DE PLANEACIÓN",{"$nulls":6},"16","CORRESPONDENCIA ENVIADA Y RECIBIDA",null,null,"Acuerdo 115 de 1993 \"Por el cual dicta el Reglamento Interno de la Sala Administrativa” Artículo 2: Funciones de la Sala Administrativa. Item. 17. levar el control de rendimiento de las Corporaciones Judiciales."]
[19,"130000-III","SALA ADMINISTRATIVA","132000-III","DIRECCIÓN DE PLANEACIÓN",{"$nulls":6},"25","MANUALES DE PROCESOS Y PROCEDIMIENTOS",null,null,"Acuerdo 115 de 1993 \"Por el cual dicta el Reglamento Interno de la Sala Administrativa” Artículo 2: Funciones de la Sala Administrativa. Item 9. nviar a la Corte suprema de Justicia y al Consejo de Estado lista de candidatos para proveer las vacantes de Magistrados que se presenten en estas Corporaciones. 10. Elaborar y presentar a la Corte Suprema de Justicia y al Consejo de Estado listas de candidatos para Magistrados de los respectivos tribunales, de conformidad con las normas sobre Carrera Judicial. 11. Regular los trámites judiciales y administrativos que se adelanten en los despachos judiciales, en los aspectos no previstos por el legislador. "]
[20,"130000-III","SALA ADMINISTRATIVA","132000-III","DIRECCIÓN DE PLANEACIÓN",{"$nulls":6},"31","PROYECTOS","31.01","Proyectos de Inversión","Acuerdo 115 de 1993 \"Por el cual dicta el Reglamento Interno de la Sala Administrativa” Artículo 2: Funciones de la Sala Administrativa. Item 9. nviar a la Corte suprema de Justicia y al Consejo de Estado lista de candidatos para proveer las vacantes de Magistrados que se presenten en estas Corporaciones. 10. Elaborar y presentar a la Corte Suprema de Justicia y al Consejo de Estado listas de candidatos para Magistrados de los respectivos tribunales, de conformidad con las normas sobre Carrera Judicial. 11. Regular los trámites judiciales y administrativos que se adelanten en los despachos judiciales, en los aspectos no previstos por el legislador. "]
[21,"130000-III","SALA ADMINISTRATIVA","133000-III","UNIDAD DE ADMINISTRACIÓN DE LA CARRERA JUDICIAL",{"$nulls":6},"02","ACTAS","02.01","Actas de Comité de Carrera Judicial","Acuerdo 115 de 1993 \"Por el cual dicta el Reglamento Interno de la Sala Administrativa” Artículo 2: Funciones de la Sala Administrativa. Item 9. nviar a la Corte suprema de Justicia y al Consejo de Estado lista de candidatos para proveer las vacantes de Magistrados que se presenten en estas Corporaciones. 10. Elaborar y presentar a la Corte Suprema de Justicia y al Consejo de Estado listas de candidatos para Magistrados de los respectivos tribunales, de conformidad con las normas sobre Carrera Judicial. 11. Regular los trámites judiciales y administrativos que se adelanten en los despachos judiciales, en los aspectos no previstos por el legislador. "]
[22,"130000-III","SALA ADMINISTRATIVA","133100-III","DIVISIÓN DE PROCESOS DE SELECCIÓ, CONCURSOS Y ESCALAFÓN",{"$nulls":6},"30","PROCESOS","30.01","Procesos de Selección y Concursos","Acuerdo 115 de 1993 \"Por el cual dicta el Reglamento Interno de la Sala Administrativa” Artículo 2: Funciones de la Sala Administrativa. Item 9. nviar a la Corte suprema de Justicia y al Consejo de Estado lista de candidatos para proveer las vacantes de Magistrados que se presenten en estas Corporaciones. 10. Elaborar y presentar a la Corte Suprema de Justicia y al Consejo de Estado listas de candidatos para Magistrados de los respectivos tribunales, de conformidad con las normas sobre Carrera Judicial. 11. Regular los trámites judiciales y administrativos que se adelanten en los despachos judiciales, en los aspectos no previstos por el legislador. "]
[23,"130000-III","SALA ADMINISTRATIVA","133200-III","DIVISIÓN DE CONTROL DE RENDIMIENTO Y CALIFICACIÓN DE SERVICIOS"]
[24,"130000-III","SALA ADMINISTRATIVA","134000-III","UNIDAD DE RECURSOS FISICOS E INMUEBLES",{"$nulls":6},"16","CORRESPONDENCIA ENVIADA Y RECIBIDA",null,null,"Acuerdo 115 de 1993 \"Por el cual dicta el Reglamento Interno de la Sala Administrativa” Artículo 2: Funciones de la Sala Administrativa. Item 9. nviar a la Corte suprema de Justicia y al Consejo de Estado lista de candidatos para proveer las vacantes de Magistrados que se presenten en estas Corporaciones. 10. Elaborar y presentar a la Corte Suprema de Justicia y al Consejo de Estado listas de candidatos para Magistrados de los respectivos tribunales, de conformidad con las normas sobre Carrera Judicial. 11. Regular los trámites judiciales y administrativos que se adelanten en los despachos judiciales, en los aspectos no previstos por el legislador. "]
[25,"130000-III","SALA ADMINISTRATIVA","135000-III","UNIDAD JURÍDICA",{"$nulls":6},"01","ACCIONES CONSTITUCIONALES","01.01","Acciones de Tutela","Acuerdo 115 de 1993 \"Por el cual dicta el Reglamento Interno de la Sala Administrativa” Artículo 2: Funciones de la Sala Administrativa. Item 2.Elaborar el proyecto de presupuesto de la Rama Judicial que deberá remitirse al Gobierno."]
[26,"130000-III","SALA ADMINISTRATIVA","135000-III","UNIDAD JURÍDICA",{"$nulls":6},"02","ACTAS","02.03","Actas de Comité de Contratos","Acuerdo 115 de 1993 \"Por el cual dicta el Reglamento Interno de la Sala Administrativa” Artículo 2: Funciones de la Sala Administrativa. Item 2.Elaborar el proyecto de presupuesto de la Rama Judicial que deberá remitirse al Gobierno."]
[27,"130000-III","SALA ADMINISTRATIVA","135000-III","UNIDAD JURÍDICA",{"$nulls":6},"12","CONCEPTOS","12.01","Conceptos Jurídicos","Acuerdo 115 de 1993 \"Por el cual dicta el Reglamento Interno de la Sala Administrativa” Artículo 2: Funciones de la Sala Administrativa. Item 2.Elaborar el proyecto de presupuesto de la Rama Judicial que deberá remitirse al Gobierno."]
[28,"130000-III","SALA ADMINISTRATIVA","135000-III","UNIDAD JURÍDICA",{"$nulls":6},"14","CONTRATOS",null,null,"Acuerdo 115 de 1993 \"Por el cual dicta el Reglamento Interno de la Sala Administrativa” Artículo 2: Funciones de la Sala Administrativa. Item 2.Elaborar el proyecto de presupuesto de la Rama Judicial que deberá remitirse al Gobierno."]
[29,"130000-III","SALA ADMINISTRATIVA","135000-III","UNIDAD JURÍDICA",{"$nulls":6},"15","CONVENIOS","15.01","Convenios Interadministrativos","Acuerdo 115 de 1993 \"Por el cual dicta el Reglamento Interno de la Sala Administrativa” Artículo 2: Funciones de la Sala Administrativa. Item 2.Elaborar el proyecto de presupuesto de la Rama Judicial que deberá remitirse al Gobierno."]
[30,"130000-III","SALA ADMINISTRATIVA","135000-III","UNIDAD JURÍDICA",{"$nulls":6},"16","CORRESPONDENCIA ENVIADA Y RECIBIDA",null,null,"Acuerdo 115 de 1993 \"Por el cual dicta el Reglamento Interno de la Sala Administrativa” Artículo 2: Funciones de la Sala Administrativa. Item 2.Elaborar el proyecto de presupuesto de la Rama Judicial que deberá remitirse al Gobierno."]
[31,"130000-III","SALA ADMINISTRATIVA","135000-III","UNIDAD JURÍDICA",{"$nulls":6},"21","INFORMES","21.02","Informes de gestión","Acuerdo 115 de 1993 \"Por el cual dicta el Reglamento Interno de la Sala Administrativa” Artículo 2: Funciones de la Sala Administrativa. Item 2.Elaborar el proyecto de presupuesto de la Rama Judicial que deberá remitirse al Gobierno."]
[32,"130000-III","SALA ADMINISTRATIVA","135000-III","UNIDAD JURÍDICA",{"$nulls":6},"24","LICITACIONES PÚBLICAS",null,null,"Acuerdo 115 de 1993 \"Por el cual dicta el Reglamento Interno de la Sala Administrativa” Artículo 2: Funciones de la Sala Administrativa. Item 2.Elaborar el proyecto de presupuesto de la Rama Judicial que deberá remitirse al Gobierno."]
[33,"130000-III","SALA ADMINISTRATIVA","135000-III","UNIDAD JURÍDICA",{"$nulls":6},"28","Planes de compras",null,null,"Acuerdo 115 de 1993 \"Por el cual dicta el Reglamento Interno de la Sala Administrativa” Artículo 2: Funciones de la Sala Administrativa. Item 2.Elaborar el proyecto de presupuesto de la Rama Judicial que deberá remitirse al Gobierno."]
[34,"130000-III","SALA ADMINISTRATIVA","136000-III","UNIDAD DE SEGURIDAD",{"$nulls":6},"16","CORRESPONDENCIA ENVIADA Y RECIBIDA",null,null,"Acuerdo 115 de 1993 \"Por el cual dicta el Reglamento Interno de la Sala Administrativa” Artículo 2: Funciones de la Sala Administrativa. Item 2.Elaborar el proyecto de presupuesto de la Rama Judicial que deberá remitirse al Gobierno."]
[35,"130000-III","SALA ADMINISTRATIVA","136000-III","UNIDAD DE SEGURIDAD",{"$nulls":6},"21","INFORMES","21.03","Informes de Siniestros","Acuerdo 115 de 1993 \"Por el cual dicta el Reglamento Interno de la Sala Administrativa” Artículo 2: Funciones de la Sala Administrativa. Item 2.Elaborar el proyecto de presupuesto de la Rama Judicial que deberá remitirse al Gobierno."]
[36,"130000-III","SALA ADMINISTRATIVA","137000-III","DIRECCIÓN NACIONAL DE ADMINISTRACIÓN JUDICIAL",{"$nulls":6},"03","ACTOS ADMINISTRATIVOS","03.01","Acuerdos","Acuerdo 115 de 1993 \"Por el cual dicta el Reglamento Interno de la Sala Administrativa” Artículo 8. Areas de Actividad. Con arreglo a su naturaleza, los asuntos de que debe conocer la Sala por mandato constitucional, legal o reglamentario, se agrupan en las siguientes áreas de actividad especializada: 6. Presupuesto y administración de recursos financieros de la Rama Judicial."]
[37,"130000-III","SALA ADMINISTRATIVA","137000-III","DIRECCIÓN NACIONAL DE ADMINISTRACIÓN JUDICIAL",{"$nulls":6},"03","ACTOS ADMINISTRATIVOS","03.02","Resoluciones","Acuerdo 115 de 1993 \"Por el cual dicta el Reglamento Interno de la Sala Administrativa” Artículo 8. Areas de Actividad. Con arreglo a su naturaleza, los asuntos de que debe conocer la Sala por mandato constitucional, legal o reglamentario, se agrupan en las siguientes áreas de actividad especializada: 6. Presupuesto y administración de recursos financieros de la Rama Judicial."]
[38,"130000-III","SALA ADMINISTRATIVA","137000-III","DIRECCIÓN NACIONAL DE ADMINISTRACIÓN JUDICIAL",{"$nulls":6},"16","CORRESPONDENCIA ENVIADA Y RECIBIDA",null,null,"Acuerdo 115 de 1993 \"Por el cual dicta el Reglamento Interno de la Sala Administrativa” Artículo 8. Areas de Actividad. Con arreglo a su naturaleza, los asuntos de que debe conocer la Sala por mandato constitucional, legal o reglamentario, se agrupan en las siguientes áreas de actividad especializada: 6. Presupuesto y administración de recursos financieros de la Rama Judicial."]
[39,"130000-III","SALA ADMINISTRATIVA","137000-III","DIRECCIÓN NACIONAL DE ADMINISTRACIÓN JUDICIAL",{"$nulls":6},"21","INFORMES","21.03","Informes de Siniestros","Acuerdo 115 de 1993 \"Por el cual dicta el Reglamento Interno de la Sala Administrativa” Artículo 8. Areas de Actividad. Con arreglo a su naturaleza, los asuntos de que debe conocer la Sala por mandato constitucional, legal o reglamentario, se agrupan en las siguientes áreas de actividad especializada: 6. Presupuesto y administración de recursos financieros de la Rama Judicial."]
[40,"130000-III","SALA ADMINISTRATIVA","137000-III","DIRECCIÓN NACIONAL DE ADMINISTRACIÓN JUDICIAL",{"$nulls":6},"35","REGISTROS DE PROVEEDORES",null,null,"Acuerdo 115 de 1993 \"Por el cual dicta el Reglamento Interno de la Sala Administrativa” Artículo 8. Areas de Actividad. Con arreglo a su naturaleza, los asuntos de que debe conocer la Sala por mandato constitucional, legal o reglamentario, se agrupan en las siguientes áreas de actividad especializada: 6. Presupuesto y administración de recursos financieros de la Rama Judicial."]
[41,"130000-III","SALA ADMINISTRATIVA","137000-III","DIRECCIÓN NACIONAL DE ADMINISTRACIÓN JUDICIAL","137100-III","UNIDAD ADMINISTRATIVA",{"$nulls":4},"11","COMPROBANTES DE ALMACÉN","11.01","Comprobantes de Entrada Elementos a Almacén","Acuerdo 115 de 1993 \"Por el cual dicta el Reglamento Interno de la Sala Administrativa” Artículo 8. Areas de Actividad. Con arreglo a su naturaleza, los asuntos de que debe conocer la Sala por mandato constitucional, legal o reglamentario, se agrupan en las siguientes áreas de actividad especializada: 6. Presupuesto y administración de recursos financieros de la Rama Judicial."]
[42,"130000-III","SALA ADMINISTRATIVA","137000-III","DIRECCIÓN NACIONAL DE ADMINISTRACIÓN JUDICIAL","137100-III","UNIDAD ADMINISTRATIVA",{"$nulls":4},"11","COMPROBANTES DE ALMACÉN","11.02","Comprobantes de Salida de Elementos de Almacén","Acuerdo 115 de 1993 \"Por el cual dicta el Reglamento Interno de la Sala Administrativa” Artículo 8. Areas de Actividad. Con arreglo a su naturaleza, los asuntos de que debe conocer la Sala por mandato constitucional, legal o reglamentario, se agrupan en las siguientes áreas de actividad especializada: 6. Presupuesto y administración de recursos financieros de la Rama Judicial."]
[43,"130000-III","SALA ADMINISTRATIVA","137000-III","DIRECCIÓN NACIONAL DE ADMINISTRACIÓN JUDICIAL","137100-III","UNIDAD ADMINISTRATIVA",{"$nulls":4},"16","CORRESPONDENCIA ENVIADA Y RECIBIDA",null,null,"Acuerdo 115 de 1993 \"Por el cual dicta el Reglamento Interno de la Sala Administrativa” Artículo 8. Areas de Actividad. Con arreglo a su naturaleza, los asuntos de que debe conocer la Sala por mandato constitucional, legal o reglamentario, se agrupan en las siguientes áreas de actividad especializada: 6. Presupuesto y administración de recursos financieros de la Rama Judicial."]
[44,"130000-III","SALA ADMINISTRATIVA","137000-III","DIRECCIÓN NACIONAL DE ADMINISTRACIÓN JUDICIAL","137100-III","UNIDAD ADMINISTRATIVA",{"$nulls":4},"21","INFORMES","21.02","Informes de Gestión","Acuerdo 115 de 1993 \"Por el cual dicta el Reglamento Interno de la Sala Administrativa” Artículo 8. Areas de Actividad. Con arreglo a su naturaleza, los asuntos de que debe conocer la Sala por mandato constitucional, legal o reglamentario, se agrupan en las siguientes áreas de actividad especializada: 6. Presupuesto y administración de recursos financieros de la Rama Judicial."]
[45,"130000-III","SALA ADMINISTRATIVA","137000-III","DIRECCIÓN NACIONAL DE ADMINISTRACIÓN JUDICIAL","137100-III","UNIDAD ADMINISTRATIVA",{"$nulls":4},"22","INVENTARIOS","22.01","Inventarios de Vehículos","Acuerdo 115 de 1993 \"Por el cual dicta el Reglamento Interno de la Sala Administrativa” Artículo 8. Areas de Actividad. Con arreglo a su naturaleza, los asuntos de que debe conocer la Sala por mandato constitucional, legal o reglamentario, se agrupan en las siguientes áreas de actividad especializada: 6. Presupuesto y administración de recursos financieros de la Rama Judicial."]
[46,"130000-III","SALA ADMINISTRATIVA","137000-III","DIRECCIÓN NACIONAL DE ADMINISTRACIÓN JUDICIAL","137100-III","UNIDAD ADMINISTRATIVA",{"$nulls":4},"22","INVENTARIOS","22.02","Inventarios Generales","Acuerdo 115 de 1993 \"Por el cual dicta el Reglamento Interno de la Sala Administrativa” Artículo 8. Areas de Actividad. Con arreglo a su naturaleza, los asuntos de que debe conocer la Sala por mandato constitucional, legal o reglamentario, se agrupan en las siguientes áreas de actividad especializada: 6. Presupuesto y administración de recursos financieros de la Rama Judicial."]
[47,"130000-III","SALA ADMINISTRATIVA","137000-III","DIRECCIÓN NACIONAL DE ADMINISTRACIÓN JUDICIAL","137100-III","UNIDAD ADMINISTRATIVA",{"$nulls":4},"33","REGISTROS DE ENTREGA DE VEHÍCULOS",null,null,"Acuerdo 115 de 1993 \"Por el cual dicta el Reglamento Interno de la Sala Administrativa” Artículo 8. Areas de Actividad. Con arreglo a su naturaleza, los asuntos de que debe conocer la Sala por mandato constitucional, legal o reglamentario, se agrupan en las siguientes áreas de actividad especializada: 6. Presupuesto y administración de recursos financieros de la Rama Judicial."]
[48,"137000-III","DIRECCIÓN NACIONAL DE ADMINISTRACIÓN JUDICIAL","137000-III","DIRECCIÓN NACIONAL DE ADMINISTRACIÓN JUDICIAL","137200-III","UNIDAD FINANCIERA",{"$nulls":4},"05","BALANCES GENERALES",null,null,"Acuerdo 115 de 1993 \"Por el cual dicta el Reglamento Interno de la Sala Administrativa” Artículo 8. Areas de Actividad. Con arreglo a su naturaleza, los asuntos de que debe conocer la Sala por mandato constitucional, legal o reglamentario, se agrupan en las siguientes áreas de actividad especializada: 6. Presupuesto y administración de recursos financieros de la Rama Judicial."]
[49,"137000-III","DIRECCIÓN NACIONAL DE ADMINISTRACIÓN JUDICIAL","137000-III","DIRECCIÓN NACIONAL DE ADMINISTRACIÓN JUDICIAL","137200-III","UNIDAD FINANCIERA",{"$nulls":4},"06","BOLETINES","06.01","Boletines Diarios de Tesorería","Acuerdo 115 de 1993 \"Por el cual dicta el Reglamento Interno de la Sala Administrativa” Artículo 8. Areas de Actividad. Con arreglo a su naturaleza, los asuntos de que debe conocer la Sala por mandato constitucional, legal o reglamentario, se agrupan en las siguientes áreas de actividad especializada: 6. Presupuesto y administración de recursos financieros de la Rama Judicial."]
[50,"137000-III","DIRECCIÓN NACIONAL DE ADMINISTRACIÓN JUDICIAL","137000-III","DIRECCIÓN NACIONAL DE ADMINISTRACIÓN JUDICIAL","137200-III","UNIDAD FINANCIERA",{"$nulls":4},"08","CERTIFICADOS","08.01","Certificados de Ingresos y Retenciones","Acuerdo 115 de 1993 \"Por el cual dicta el Reglamento Interno de la Sala Administrativa” Artículo 8. Areas de Actividad. Con arreglo a su naturaleza, los asuntos de que debe conocer la Sala por mandato constitucional, legal o reglamentario, se agrupan en las siguientes áreas de actividad especializada: 6. Presupuesto y administración de recursos financieros de la Rama Judicial."]
[51,"137000-III","DIRECCIÓN NACIONAL DE ADMINISTRACIÓN JUDICIAL","137000-III","DIRECCIÓN NACIONAL DE ADMINISTRACIÓN JUDICIAL","137200-III","UNIDAD FINANCIERA",{"$nulls":4},"08","CERTIFICADOS","08.03","Certificados Presupuestales","Acuerdo 115 de 1993 \"Por el cual dicta el Reglamento Interno de la Sala Administrativa” Artículo 8. Areas de Actividad. Con arreglo a su naturaleza, los asuntos de que debe conocer la Sala por mandato constitucional, legal o reglamentario, se agrupan en las siguientes áreas de actividad especializada: 6. Presupuesto y administración de recursos financieros de la Rama Judicial."]
[52,"137000-III","DIRECCIÓN NACIONAL DE ADMINISTRACIÓN JUDICIAL","137000-III","DIRECCIÓN NACIONAL DE ADMINISTRACIÓN JUDICIAL","137200-III","UNIDAD FINANCIERA",{"$nulls":4},"10","COMPROBANTES ","10.01","Comprobantes Contables","Acuerdo 115 de 1993 \"Por el cual dicta el Reglamento Interno de la Sala Administrativa” Artículo 8. Areas de Actividad. Con arreglo a su naturaleza, los asuntos de que debe conocer la Sala por mandato constitucional, legal o reglamentario, se agrupan en las siguientes áreas de actividad especializada: 6. Presupuesto y administración de recursos financieros de la Rama Judicial."]
[53,"137000-III","DIRECCIÓN NACIONAL DE ADMINISTRACIÓN JUDICIAL","137000-III","DIRECCIÓN NACIONAL DE ADMINISTRACIÓN JUDICIAL","137200-III","UNIDAD FINANCIERA",{"$nulls":4},"13","CONCILIACIONES BANCARIAS",null,null,"Acuerdo 115 de 1993 \"Por el cual dicta el Reglamento Interno de la Sala Administrativa” Artículo 2. Item 7. Crear las dependencias administrativas necesarias para el cumplimiento de los cometidos\nconstitucionales y legales del Consejo. En desarrollo de esta función no podrán establecerse, con cargo al Tesoro, obligaciones que excedan el monto global fijado para el respectivo servicio en la ley de apropiaciones iniciales."]
[54,"137000-III","DIRECCIÓN NACIONAL DE ADMINISTRACIÓN JUDICIAL","137000-III","DIRECCIÓN NACIONAL DE ADMINISTRACIÓN JUDICIAL","137200-III","UNIDAD FINANCIERA",{"$nulls":4},"16","CORRESPONDENCIA ENVIADA Y RECIBIDA",null,null,"Acuerdo 115 de 1993 \"Por el cual dicta el Reglamento Interno de la Sala Administrativa” Artículo 2. Item 7. Crear las dependencias administrativas necesarias para el cumplimiento de los cometidos\nconstitucionales y legales del Consejo. En desarrollo de esta función no podrán establecerse, con cargo al Tesoro, obligaciones que excedan el monto global fijado para el respectivo servicio en la ley de apropiaciones iniciales."]
[55,"137000-III","DIRECCIÓN NACIONAL DE ADMINISTRACIÓN JUDICIAL","137000-III","DIRECCIÓN NACIONAL DE ADMINISTRACIÓN JUDICIAL","137200-III","UNIDAD FINANCIERA",{"$nulls":4},"17","DECLARACIONES TRIBUTARIAS",null,null,"Acuerdo 115 de 1993 \"Por el cual dicta el Reglamento Interno de la Sala Administrativa” Artículo 8. Areas de Actividad. Con arreglo a su naturaleza, los asuntos de que debe conocer la Sala por mandato constitucional, legal o reglamentario, se agrupan en las siguientes áreas de actividad especializada: 6. Presupuesto y administración de recursos financieros de la Rama Judicial."]
[56,"137000-III","DIRECCIÓN NACIONAL DE ADMINISTRACIÓN JUDICIAL","137000-III","DIRECCIÓN NACIONAL DE ADMINISTRACIÓN JUDICIAL","137200-III","UNIDAD FINANCIERA",{"$nulls":4},18,"DEPÓSITOS JUDICIALES",null,null,"Acuerdo 115 de 1993 \"Por el cual dicta el Reglamento Interno de la Sala Administrativa” Artículo 8. Areas de Actividad. Con arreglo a su naturaleza, los asuntos de que debe conocer la Sala por mandato constitucional, legal o reglamentario, se agrupan en las siguientes áreas de actividad especializada: 6. Presupuesto y administración de recursos financieros de la Rama Judicial."]
[57,"137000-III","DIRECCIÓN NACIONAL DE ADMINISTRACIÓN JUDICIAL","137000-III","DIRECCIÓN NACIONAL DE ADMINISTRACIÓN JUDICIAL","137200-III","UNIDAD FINANCIERA",{"$nulls":4},19,"DERECHOS DE PETICIÓN",null,null,"Acuerdo 115 de 1993 \"Por el cual dicta el Reglamento Interno de la Sala Administrativa” Artículo 8. Areas de Actividad. Con arreglo a su naturaleza, los asuntos de que debe conocer la Sala por mandato constitucional, legal o reglamentario, se agrupan en las siguientes áreas de actividad especializada: 6. Presupuesto y administración de recursos financieros de la Rama Judicial."]
[58,"137000-III","DIRECCIÓN NACIONAL DE ADMINISTRACIÓN JUDICIAL","137000-III","DIRECCIÓN NACIONAL DE ADMINISTRACIÓN JUDICIAL","137200-III","UNIDAD FINANCIERA",{"$nulls":4},"21","INFORMES","21.01","Informes a Entes de Control","Acuerdo 115 de 1993 \"Por el cual dicta el Reglamento Interno de la Sala Administrativa” Artículo 2. Item 7. Crear las dependencias administrativas necesarias para el cumplimiento de los cometidos\nconstitucionales y legales del Consejo. En desarrollo de esta función no podrán establecerse, con cargo al Tesoro, obligaciones que excedan el monto global fijado para el respectivo servicio en la ley de apropiaciones iniciales."]
[59,"137000-III","DIRECCIÓN NACIONAL DE ADMINISTRACIÓN JUDICIAL","137000-III","DIRECCIÓN NACIONAL DE ADMINISTRACIÓN JUDICIAL","137200-III","UNIDAD FINANCIERA",{"$nulls":4},"21","INFORMES","21.02","Informes de Gestión","Acuerdo 115 de 1993 \"Por el cual dicta el Reglamento Interno de la Sala Administrativa” Artículo 2. Item 7. Crear las dependencias administrativas necesarias para el cumplimiento de los cometidos\nconstitucionales y legales del Consejo. En desarrollo de esta función no podrán establecerse, con cargo al Tesoro, obligaciones que excedan el monto global fijado para el respectivo servicio en la ley de apropiaciones iniciales."]
[60,"137000-III","DIRECCIÓN NACIONAL DE ADMINISTRACIÓN JUDICIAL","137000-III","DIRECCIÓN NACIONAL DE ADMINISTRACIÓN JUDICIAL","137200-III","UNIDAD FINANCIERA",{"$nulls":4},"23","LIBROS CONTABLES","23.01","Libros Contables  ","Acuerdo 115 de 1993 \"Por el cual dicta el Reglamento Interno de la Sala Administrativa” Artículo 8. Areas de Actividad. Con arreglo a su naturaleza, los asuntos de que debe conocer la Sala por mandato constitucional, legal o reglamentario, se agrupan en las siguientes áreas de actividad especializada: 6. Presupuesto y administración de recursos financieros de la Rama Judicial."]
[61,"137000-III","DIRECCIÓN NACIONAL DE ADMINISTRACIÓN JUDICIAL","137000-III","DIRECCIÓN NACIONAL DE ADMINISTRACIÓN JUDICIAL","137200-III","UNIDAD FINANCIERA",{"$nulls":4},"27","ORDENES DE PAGO",null,null,"Acuerdo 115 de 1993 \"Por el cual dicta el Reglamento Interno de la Sala Administrativa” Artículo 8. Areas de Actividad. Con arreglo a su naturaleza, los asuntos de que debe conocer la Sala por mandato constitucional, legal o reglamentario, se agrupan en las siguientes áreas de actividad especializada: 6. Presupuesto y administración de recursos financieros de la Rama Judicial."]
[62,"137000-III","DIRECCIÓN NACIONAL DE ADMINISTRACIÓN JUDICIAL","137000-III","DIRECCIÓN NACIONAL DE ADMINISTRACIÓN JUDICIAL","137200-III","UNIDAD FINANCIERA",{"$nulls":4},"30","PROCESOS","30.01","Procesos de Cobro Coactivo","Acuerdo 115 de 1993 \"Por el cual dicta el Reglamento Interno de la Sala Administrativa” Artículo 8. Areas de Actividad. Con arreglo a su naturaleza, los asuntos de que debe conocer la Sala por mandato constitucional, legal o reglamentario, se agrupan en las siguientes áreas de actividad especializada: 6. Presupuesto y administración de recursos financieros de la Rama Judicial."]
[63,"130000-III","SALA ADMINISTRATIVA","137000-III","DIRECCIÓN NACIONAL DE ADMINISTRACIÓN JUDICIAL","137300-III","UNIDAD DE RECURSOS HUMANOS",{"$nulls":4},"18","HISTORIAS LABORALES",null,null,"ACUERDO No. 136 \"Por medio del cual se modifican los Acuerdos 115 de 1993, 22 y 23 de 1994.\" Artículo 1: Reestructurase la Unidad de Recursos Humanos de la Sala Administrativa del Consejo Superior de la Judicatura, cuya denominación será Unidad de Administración de la Carrera Judicial, y tendrá a su cargo la organización, el desarrollo y la implementación de los aspectos técnicos, metodológicos y de apoyo administrativo de la Carrera Judicial, los procesos de selección, los concursos, el escalafón, el control de rendimiento, la evaluación de servicios, el análisis ocupacional y el escalafón de los servidores de la Rama Judicial"]
[64,"130000-III","SALA ADMINISTRATIVA","137000-III","DIRECCIÓN NACIONAL DE ADMINISTRACIÓN JUDICIAL","137300-III","UNIDAD DE RECURSOS HUMANOS",{"$nulls":4},"21 ","INFORMES","21.02","Informes de Gestión","ACUERDO No. 136 \"Por medio del cual se modifican los Acuerdos 115 de 1993, 22 y 23 de 1994.\" Artículo 1: Reestructurase la Unidad de Recursos Humanos de la Sala Administrativa del Consejo Superior de la Judicatura, cuya denominación será Unidad de Administración de la Carrera Judicial, y tendrá a su cargo la organización, el desarrollo y la implementación de los aspectos técnicos, metodológicos y de apoyo administrativo de la Carrera Judicial, los procesos de selección, los concursos, el escalafón, el control de rendimiento, la evaluación de servicios, el análisis ocupacional y el escalafón de los servidores de la Rama Judicial"]
[65,"130000-III","SALA ADMINISTRATIVA","137000-III","DIRECCIÓN NACIONAL DE ADMINISTRACIÓN JUDICIAL","137300-III","UNIDAD DE RECURSOS HUMANOS","137310-III","DIVISIÓN DE ASUNTOS LABORALES",{"$nulls":6},"ACUERDO No. 136 \"Por medio del cual se modifican los Acuerdos 115 de 1993, 22 y 23 de 1994.\" Artículo 1: Reestructurase la Unidad de Recursos Humanos de la Sala Administrativa del Consejo Superior de la Judicatura, cuya denominación será Unidad de Administración de la Carrera Judicial, y tendrá a su cargo la organización, el desarrollo y la implementación de los aspectos técnicos, metodológicos y de apoyo administrativo de la Carrera Judicial, los procesos de selección, los concursos, el escalafón, el control de rendimiento, la evaluación de servicios, el análisis ocupacional y el escalafón de los servidores de la Rama Judicial"]
[66,"130000-III","SALA ADMINISTRATIVA","137000-III","DIRECCIÓN NACIONAL DE ADMINISTRACIÓN JUDICIAL","137300-III","UNIDAD DE RECURSOS HUMANOS","137310-III","DIVISIÓN DE ASUNTOS LABORALES","137311-III","DESPACHO DEL JEFE DE LA DIVISIÓN Y REGISTRO",{"$nulls":4},"ACUERDO No. 136 \"Por medio del cual se modifican los Acuerdos 115 de 1993, 22 y 23 de 1994.\" Artículo 1: Reestructurase la Unidad de Recursos Humanos de la Sala Administrativa del Consejo Superior de la Judicatura, cuya denominación será Unidad de Administración de la Carrera Judicial, y tendrá a su cargo la organización, el desarrollo y la implementación de los aspectos técnicos, metodológicos y de apoyo administrativo de la Carrera Judicial, los procesos de selección, los concursos, el escalafón, el control de rendimiento, la evaluación de servicios, el análisis ocupacional y el escalafón de los servidores de la Rama Judicial"]
[67,"130000-III","SALA ADMINISTRATIVA","137000-III","DIRECCIÓN NACIONAL DE ADMINISTRACIÓN JUDICIAL","137300-III","UNIDAD DE RECURSOS HUMANOS","137310-III","DIVISIÓN DE ASUNTOS LABORALES","137312-III","SECCION DE NÓMINA","21","INFORMES","21.02","Informes de gestión","ACUERDO No. 136 \"Por medio del cual se modifican los Acuerdos 115 de 1993, 22 y 23 de 1994.\" Artículo 1: Reestructurase la Unidad de Recursos Humanos de la Sala Administrativa del Consejo Superior de la Judicatura, cuya denominación será Unidad de Administración de la Carrera Judicial, y tendrá a su cargo la organización, el desarrollo y la implementación de los aspectos técnicos, metodológicos y de apoyo administrativo de la Carrera Judicial, los procesos de selección, los concursos, el escalafón, el control de rendimiento, la evaluación de servicios, el análisis ocupacional y el escalafón de los servidores de la Rama Judicial"]
[68,"130000-III","SALA ADMINISTRATIVA","137000-III","DIRECCIÓN NACIONAL DE ADMINISTRACIÓN JUDICIAL","137300-III","UNIDAD DE RECURSOS HUMANOS","137310-III","DIVISIÓN DE ASUNTOS LABORALES","137312-III","SECCION DE NÓMINA","23","NÓMINAS",null,null,"ACUERDO No. 136 \"Por medio del cual se modifican los Acuerdos 115 de 1993, 22 y 23 de 1994.\" Artículo 1: Reestructurase la Unidad de Recursos Humanos de la Sala Administrativa del Consejo Superior de la Judicatura, cuya denominación será Unidad de Administración de la Carrera Judicial, y tendrá a su cargo la organización, el desarrollo y la implementación de los aspectos técnicos, metodológicos y de apoyo administrativo de la Carrera Judicial, los procesos de selección, los concursos, el escalafón, el control de rendimiento, la evaluación de servicios, el análisis ocupacional y el escalafón de los servidores de la Rama Judicial"]
[69,"130000-III","SALA ADMINISTRATIVA","137000-III","DIRECCIÓN NACIONAL DE ADMINISTRACIÓN JUDICIAL","137300-III","UNIDAD DE RECURSOS HUMANOS","137310-III","DIVISIÓN DE ASUNTOS LABORALES","137313-III","SECCIÓN DE PRESTACIONES","07","BONOS PENSIONALES",null,null,"ACUERDO No. 136 \"Por medio del cual se modifican los Acuerdos 115 de 1993, 22 y 23 de 1994.\" Artículo 1: Reestructurase la Unidad de Recursos Humanos de la Sala Administrativa del Consejo Superior de la Judicatura, cuya denominación será Unidad de Administración de la Carrera Judicial, y tendrá a su cargo la organización, el desarrollo y la implementación de los aspectos técnicos, metodológicos y de apoyo administrativo de la Carrera Judicial, los procesos de selección, los concursos, el escalafón, el control de rendimiento, la evaluación de servicios, el análisis ocupacional y el escalafón de los servidores de la Rama Judicial"]
[70,"130000-III","SALA ADMINISTRATIVA","137000-III","DIRECCIÓN NACIONAL DE ADMINISTRACIÓN JUDICIAL","137300-III","UNIDAD DE RECURSOS HUMANOS","137320-III","DIVISIÓN DE SEGURIDAD Y BIENESTAR SOCIAL",null,null,"21","INFORMES","21.02","Informes de gestión","ACUERDO No. 136 \"Por medio del cual se modifican los Acuerdos 115 de 1993, 22 y 23 de 1994.\" Artículo 1: Reestructurase la Unidad de Recursos Humanos de la Sala Administrativa del Consejo Superior de la Judicatura, cuya denominación será Unidad de Administración de la Carrera Judicial, y tendrá a su cargo la organización, el desarrollo y la implementación de los aspectos técnicos, metodológicos y de apoyo administrativo de la Carrera Judicial, los procesos de selección, los concursos, el escalafón, el control de rendimiento, la evaluación de servicios, el análisis ocupacional y el escalafón de los servidores de la Rama Judicial"]
[71,"130000-III","SALA ADMINISTRATIVA","137000-III","DIRECCIÓN NACIONAL DE ADMINISTRACIÓN JUDICIAL","137300-III","UNIDAD DE RECURSOS HUMANOS","137320-III","DIVISIÓN DE SEGURIDAD Y BIENESTAR SOCIAL",null,null,"28","PLANES","21.02","Planes de Capacitación","ACUERDO No. 136 \"Por medio del cual se modifican los Acuerdos 115 de 1993, 22 y 23 de 1994.\" Artículo 1: Reestructurase la Unidad de Recursos Humanos de la Sala Administrativa del Consejo Superior de la Judicatura, cuya denominación será Unidad de Administración de la Carrera Judicial, y tendrá a su cargo la organización, el desarrollo y la implementación de los aspectos técnicos, metodológicos y de apoyo administrativo de la Carrera Judicial, los procesos de selección, los concursos, el escalafón, el control de rendimiento, la evaluación de servicios, el análisis ocupacional y el escalafón de los servidores de la Rama Judicial"]
[72,"130000-III","SALA ADMINISTRATIVA","138000-III","UNIDAD DE CONTROL INTERNO"]
[73,"130000-III","SALA ADMINISTRATIVA","139000-III","UNIDAD DE DESARROLLO Y PROGRAMACIÓN",{"$nulls":6},"21","INFORMES","21.02","Informes de gestión","ACUERDO No. 136 \"Por medio del cual se modifican los Acuerdos 115 de 1993, 22 y 23 de 1994.\" Artículo 1: Reestructurase la Unidad de Recursos Humanos de la Sala Administrativa del Consejo Superior de la Judicatura, cuya denominación será Unidad de Administración de la Carrera Judicial, y tendrá a su cargo la organización, el desarrollo y la implementación de los aspectos técnicos, metodológicos y de apoyo administrativo de la Carrera Judicial, los procesos de selección, los concursos, el escalafón, el control de rendimiento, la evaluación de servicios, el análisis ocupacional y el escalafón de los servidores de la Rama Judicial"]
[74,"130000-III","SALA ADMINISTRATIVA","133000-I","DIRECCIÓN NACIONAL DE REGISTRO NACIONAL DE ABOGADOS"]
[75,"140000-III","SALA JURISDICCIONAL DISCIPLINARIA","141000-III","PRESIDENCIA DE LA SALA JURISDICCIONAL"]
[76,"140000-III","SALA JURISDICCIONAL DISCIPLINARIA","141000-III","PRESIDENCIA DE LA SALA JURISDICCIONAL","141100-III","DESPACHO DEL PRESIDENTE"]
[77,"140000-III","SALA JURISDICCIONAL DISCIPLINARIA","141000-III","PRESIDENCIA DE LA SALA JURISDICCIONAL","141200-III","UNIDAD DE INSTRUCCIÓN"]
[78,"140000-III","SALA JURISDICCIONAL DISCIPLINARIA","142000-III","SECRETARÍA JUDICIAL",{"$nulls":6},"02","ACTAS","02.5","Actas de Sala Jurisdiccional Disciplinaria","Decreto 2652 de 1991. Por el cual se adoptan medidas administrativas para el funcionamiento del Consejo Superior de la Judicatura. Artículo 9. Corresponde a la Sala Jurisdiccional Disciplinaria del Consejo Superior: Dirimir los conflictos de competencia que ocurran entre las diferentes jurisdicciones.  "]
[79,"140000-III","SALA JURISDICCIONAL DISCIPLINARIA","142000-III","SECRETARÍA JUDICIAL",{"$nulls":6},"20","HISTORIAS LABORALES",null,null,"Decreto 2652 de 1991. Por el cual se adoptan medidas administrativas para el funcionamiento del Consejo Superior de la Judicatura. Artículo 9. Corresponde a la Sala Jurisdiccional Disciplinaria del Consejo Superior: 6. Las demás funciones que determine el reglamento. "]
[80,"140000-III","SALA JURISDICCIONAL DISCIPLINARIA","142000-III","SECRETARÍA JUDICIAL",{"$nulls":6},"30","PROCESOS","30.02","Procesos Disciplinarios","Decreto 2652 de 1991. Por el cual se adoptan medidas administrativas para el funcionamiento del Consejo Superior de la Judicatura. Artículo 9. Corresponde a la Sala Jurisdiccional Disciplinaria del Consejo Superior: 3. Conocer en única instancia de los procesos disciplinarios que se adelanten contra los magistrados de la Corte Constitucional, de la Corte Suprema de Justicia, del Consejo de Estado y el Fiscal General.   "]
[81,"140000-III","SALA JURISDICCIONAL DISCIPLINARIA","142000-III","SECRETARÍA JUDICIAL",{"$nulls":6},"32","PROTOCOLOS",null,null,"Decreto 2652 de 1991. Por el cual se adoptan medidas administrativas para el funcionamiento del Consejo Superior de la Judicatura. Artículo 9. Corresponde a la Sala Jurisdiccional Disciplinaria del Consejo Superior: 6. Las demás funciones que determinen el reglamento.   "]
[82,"140000-III","SALA JURISDICCIONAL DISCIPLINARIA","142000-III","SECRETARÍA JUDICIAL",{"$nulls":6},"33","PROVIDENCIAS",null,null,"Decreto 2652 de 1991. Por el cual se adoptan medidas administrativas para el funcionamiento del Consejo Superior de la Judicatura. Artículo 9. Corresponde a la Sala Jurisdiccional Disciplinaria del Consejo Superior: 1. Dirimir los conflictos de competencia que ocurran entre las diferentes jurisdicciones.  3. Conocer en única instancia de los procesos disciplinarios que se adelanten contra los magistrados de la Corte Constitucional, de la Corte Suprema de Justicia, del Consejo de Estado y el Fiscal General.   "]
[83,"140000-III","SALA JURISDICCIONAL DISCIPLINARIA","143000-III","RELATORÍA"]
[84,"140000-III","SALA JURISDICCIONAL DISCIPLINARIA","144000-III","DESPACHO DE LOS MAGISTRADOS"]
[85,"160000-III","CONSEJO SECCIONAL DE LA JUDICATURA","161000-III","SALA ADMINISTRATIVA",{"$nulls":6},"01","ACCIONES CONSTITUCIONALES",{"$f":"+VLOOKUP(O92,'Codificación de series y subser'!$C$2:$D$63,2,0)","v":"1.1"},"Acciones de Tutela","Acuerdo No. 061 de 1993 “Por el cual se dicta el reglamento general para el funcionamiento de los Consejos Seccionales de la Judicatura”, artículo 13, Sala Administrativa del Consejo Superior de la Judicatura, 1993. Litera a) Conocer en primera instancia de los procesos disciplinarios que se adelanten contra los jueces, los abogados en ejercicio y los empleados del Consejo, b) Conocer de los recursos de apelación y de hecho que se interpongan en los procesos disciplinarios de que conocen en primera instancia los Tribunales, los Jueces y el correspondiente Director Seccional de Administración Judicial que tengan sede en el territorio de competencia del Consejo."]
[86,"160000-III","CONSEJO SECCIONAL DE LA JUDICATURA","162000-III","SALA JURISDICCIONAL DISCIPLINARIA",{"$nulls":6},30,"PROCESOS","30.2","Procesos Disciplinarios","Acuerdo No. 061 de 1993 “Por el cual se dicta el reglamento general para el funcionamiento de los Consejos Seccionales de la Judicatura”, artículo 13, Sala Administrativa del Consejo Superior de la Judicatura, 1993. Litera a) Conocer en primera instancia de los procesos disciplinarios que se adelanten contra los jueces, los abogados en ejercicio y los empleados del Consejo, b) Conocer de los recursos de apelación y de hecho que se interpongan en los procesos disciplinarios de que conocen en primera instancia los Tribunales, los Jueces y el correspondiente Director Seccional de Administración Judicial que tengan sede en el territorio de competencia del Consejo."]

{"sheet":"Control de Versiones ","index":2,"n_rows":4,"n_cols":4,"rows_kept":4,"merged":[[1,0,1,3]]}
[]
["Control de Versiones "]
["Número de Revisión","Fecha","Sección ","Cambios Realizados"]
[1,"2024-08-01","Todo el documento ","Creación del documento CCD "]